[Event "Titled Tuesday Blitz May 23 Late 2023"]
[White "Senft, Sean"]
[Black "Annaberdiyev, Meylis"]
[WhiteFideId "2044960"]
[BlackFideId "14000563"]
[WhiteElo "1989"]
[BlackElo "2416"]
[Result "1/2-1/2"]
[Round "05"]
[TimeControl "180+2"]
[Date "2023.05.23"]
[WhiteClock "0:00:05"]
[BlackClock "0:00:04"]

1. d4 {[%clk 0:03:00]}  Nf6 {[%clk 0:02:59]} 2. c4 {[%clk 0:03:01]}  g6 {[%clk 0:03:00]} 3. Nc3 {[%clk 0:03:02]}  Bg7 {[%clk 0:03:00]} 4. e4 {[%clk 0:03:02]}  d6 {[%clk 0:03:01]} 5. f4 {[%clk 0:03:03]}  c5 {[%clk 0:03:00]} 6. d5 {[%clk 0:03:03]}  O-O {[%clk 0:02:58]} 7. Nf3 {[%clk 0:03:04]}  e6 {[%clk 0:02:58]} 8. Be2 {[%clk 0:03:05]}  exd5 {[%clk 0:02:58]} 9. exd5 {[%clk 0:03:06]}  Re8 {[%clk 0:02:40]} 10. O-O {[%clk 0:03:03]}  a6 {[%clk 0:02:40]} 11. a4 {[%clk 0:03:03]}  Ng4 {[%clk 0:02:33]} 12. Bd3 {[%clk 0:02:52]}  Nh6 {[%clk 0:02:20]} 13. Re1 {[%clk 0:02:43]}  Bg4 {[%clk 0:02:12]} 14. Rxe8+ {[%clk 0:02:30]}  Qxe8 {[%clk 0:02:13]} 15. h3 {[%clk 0:02:29]}  Bf5 {[%clk 0:02:13]} 16. g4 {[%clk 0:02:17]}  Bxd3 {[%clk 0:02:10]} 17. Qxd3 {[%clk 0:02:18]}  Nd7 {[%clk 0:02:08]} 18. Bd2 {[%clk 0:02:17]}  f5 {[%clk 0:01:58]} 19. Re1 {[%clk 0:02:14]}  Qf8 {[%clk 0:01:58]} 20. Ng5 {[%clk 0:01:38]}  fxg4 {[%clk 0:01:56]} 21. Ne6 {[%clk 0:01:38]}  Qf5 {[%clk 0:01:52]} 22. Qxf5 {[%clk 0:01:35]}  Nxf5 {[%clk 0:01:39]} 23. hxg4 {[%clk 0:01:36]}  Nd4 {[%clk 0:01:37]} 24. Nxd4 {[%clk 0:01:16]}  Bxd4+ {[%clk 0:01:32]} 25. Kg2 {[%clk 0:01:15]}  Rf8 {[%clk 0:01:06]} 26. Ne4 {[%clk 0:01:09]}  b5 {[%clk 0:01:00]} 27. axb5 {[%clk 0:01:06]}  axb5 {[%clk 0:01:01]} 28. Nxd6 {[%clk 0:01:04]}  Nb6 {[%clk 0:00:49]} 29. b3 {[%clk 0:00:38]}  bxc4 {[%clk 0:00:49]} 30. bxc4 {[%clk 0:00:39]}  Rd8 {[%clk 0:00:47]} 31. Re6 {[%clk 0:00:40]}  Ra8 {[%clk 0:00:44]} 32. f5 {[%clk 0:00:18]}  Ra2 {[%clk 0:00:40]} 33. Re2 {[%clk 0:00:17]}  Bc3 {[%clk 0:00:25]} 34. Ne4 {[%clk 0:00:16]}  Be5 {[%clk 0:00:16]} 35. fxg6 {[%clk 0:00:10]}  hxg6 {[%clk 0:00:16]} 36. Kf3 {[%clk 0:00:03]}  Nxc4 {[%clk 0:00:16]} 37. Bc3 {[%clk 0:00:01]}  Rxe2 {[%clk 0:00:14]} 38. Kxe2 {[%clk 0:00:02]}  Bxc3 {[%clk 0:00:12]} 39. Nxc3 {[%clk 0:00:03]}  Nd6 {[%clk 0:00:12]} 40. Kd3 {[%clk 0:00:02]}  Kf7 {[%clk 0:00:10]} 41. Na4 {[%clk 0:00:03]}  c4+ {[%clk 0:00:08]} 42. Kd4 {[%clk 0:00:04]}  Kf6 {[%clk 0:00:09]} 43. Nb6 {[%clk 0:00:04]}  c3 {[%clk 0:00:04]} 44. Kxc3 {[%clk 0:00:03]}  Ke5 {[%clk 0:00:05]} 45. Kb4 {[%clk 0:00:02]}  g5 {[%clk 0:00:04]} 46. Kc5 {[%clk 0:00:03]}  Ne4+ {[%clk 0:00:04]} 47. Kc6 {[%clk 0:00:03]}  Kf4 {[%clk 0:00:04]} 48. Nc4 {[%clk 0:00:01]}  Kxg4 {[%clk 0:00:03]} 49. d6 {[%clk 0:00:02]}  Nxd6 {[%clk 0:00:03]} 50. Kxd6 {[%clk 0:00:03]}  Kf3 {[%clk 0:00:04]} 51. Ne5+ {[%clk 0:00:04]}  Kf4 {[%clk 0:00:04]} 52. Ke6 {[%clk 0:00:04]}  g4 {[%clk 0:00:04]} 53. Nxg4 {[%clk 0:00:05]} 1/2-1/2


[Site "https://www.chess.com"]

[Event "Titled Tuesday Blitz May 23 Late 2023"]
[White "Rottenwohrer Suarez, Juan"]
[Black "Maltsevskaya, Aleksandra"]
[WhiteFideId "32068182"]
[BlackFideId "24174041"]
[WhiteElo "2174"]
[BlackElo "2302"]
[Result "0-1"]
[Round "05"]
[TimeControl "180+2"]
[Date "2023.05.23"]
[WhiteClock "0:00:01"]
[BlackClock "0:00:46"]

1. d4 {[%clk 0:03:00]}  Nf6 {[%clk 0:02:48]} 2. c4 {[%clk 0:03:01]}  g6 {[%clk 0:02:49]} 3. Nc3 {[%clk 0:02:59]}  d6 {[%clk 0:02:50]} 4. e4 {[%clk 0:03:00]}  Bg7 {[%clk 0:02:50]} 5. Be2 {[%clk 0:03:00]}  O-O {[%clk 0:02:51]} 6. Be3 {[%clk 0:03:01]}  c5 {[%clk 0:02:49]} 7. d5 {[%clk 0:02:59]}  e6 {[%clk 0:02:49]} 8. h3 {[%clk 0:02:54]}  exd5 {[%clk 0:02:50]} 9. exd5 {[%clk 0:02:50]}  Re8 {[%clk 0:02:51]} 10. Nf3 {[%clk 0:02:46]}  Bf5 {[%clk 0:02:51]} 11. g4 {[%clk 0:02:34]}  Be4 {[%clk 0:02:16]} 12. Nxe4 {[%clk 0:02:29]}  Nxe4 {[%clk 0:02:17]} 13. Qc2 {[%clk 0:02:26]}  Nd7 {[%clk 0:02:06]} 14. Kf1 {[%clk 0:02:14]}  Ng3+ {[%clk 0:02:03]} 15. fxg3 {[%clk 0:01:45]}  Rxe3 {[%clk 0:02:02]} 16. Kg2 {[%clk 0:01:46]}  Qe7 {[%clk 0:02:02]} 17. Rae1 {[%clk 0:01:38]}  Re8 {[%clk 0:02:01]} 18. b3 {[%clk 0:01:27]}  Ne5 {[%clk 0:02:01]} 19. Nh4 {[%clk 0:01:02]}  Nd3 {[%clk 0:01:50]} 20. Bxd3 {[%clk 0:00:18]}  Rxe1 {[%clk 0:01:51]} 21. Rxe1 {[%clk 0:00:18]}  Qxe1 {[%clk 0:01:52]} 22. Nf3 {[%clk 0:00:18]}  Qa1 {[%clk 0:01:47]} 23. h4 {[%clk 0:00:16]}  Re3 {[%clk 0:01:45]} 24. g5 {[%clk 0:00:12]}  Bd4 {[%clk 0:01:45]} 25. Be2 {[%clk 0:00:07]}  a5 {[%clk 0:01:26]} 26. Bd3 {[%clk 0:00:07]}  a4 {[%clk 0:01:15]} 27. bxa4 {[%clk 0:00:07]}  Qc3 {[%clk 0:01:15]} 28. Qxc3 {[%clk 0:00:07]}  Bxc3 {[%clk 0:01:16]} 29. Bf1 {[%clk 0:00:06]}  Ba1 {[%clk 0:01:15]} 30. Nd2 {[%clk 0:00:04]}  Ra3 {[%clk 0:01:15]} 31. Ne4 {[%clk 0:00:04]}  Be5 {[%clk 0:01:13]} 32. g4 {[%clk 0:00:03]}  Rxa4 {[%clk 0:01:12]} 33. Bd3 {[%clk 0:00:02]}  Rxa2+ {[%clk 0:01:10]} 34. Kf3 {[%clk 0:00:03]}  Ra3 {[%clk 0:01:11]} 35. Ke3 {[%clk 0:00:03]}  b5 {[%clk 0:01:10]} 36. Nd2 {[%clk 0:00:03]}  b4 {[%clk 0:01:04]} 37. Ke2 {[%clk 0:00:03]}  Bg3 {[%clk 0:01:03]} 38. Ne4 {[%clk 0:00:02]}  Bxh4 {[%clk 0:01:03]} 39. Nxd6 {[%clk 0:00:03]}  b3 {[%clk 0:01:00]} 40. Ne4 {[%clk 0:00:02]}  b2 {[%clk 0:00:58]} 41. Bc2 {[%clk 0:00:03]}  Ra1 {[%clk 0:00:52]} 42. d6 {[%clk 0:00:03]}  b1=Q {[%clk 0:00:51]} 43. Bxb1 {[%clk 0:00:03]}  Rxb1 {[%clk 0:00:52]} 44. d7 {[%clk 0:00:03]}  Rb8 {[%clk 0:00:52]} 45. Kd3 {[%clk 0:00:02]}  f5 {[%clk 0:00:48]} 46. Nf6+ {[%clk 0:00:01]}  Kf7 {[%clk 0:00:48]} 47. gxf5 {[%clk 0:00:02]}  gxf5 {[%clk 0:00:46]} 48. Ke3 {[%clk 0:00:01]}  Bxg5+ {[%clk 0:00:46]} 0-1


[Site "https://www.chess.com"]

[Event "Titled Tuesday Blitz May 23 Late 2023"]
[White "Kielinkei"]
[Black "Mirimanian, Hayk"]
[BlackFideId "4700180"]
[WhiteElo "2457"]
[BlackElo "2280"]
[Result "0-1"]
[Round "05"]
[TimeControl "180+2"]
[Date "2023.05.23"]
[WhiteClock "0:00:06"]
[BlackClock "0:00:38"]

1. d4 {[%clk 0:03:00]}  d5 {[%clk 0:02:56]} 2. c4 {[%clk 0:03:00]}  e6 {[%clk 0:02:54]} 3. Nc3 {[%clk 0:02:59]}  c6 {[%clk 0:02:46]} 4. e3 {[%clk 0:02:53]}  Nf6 {[%clk 0:02:44]} 5. Nf3 {[%clk 0:02:52]}  Nbd7 {[%clk 0:02:43]} 6. Be2 {[%clk 0:02:49]}  Bd6 {[%clk 0:02:40]} 7. O-O {[%clk 0:02:49]}  O-O {[%clk 0:02:38]} 8. b3 {[%clk 0:02:50]}  b6 {[%clk 0:02:36]} 9. Bb2 {[%clk 0:02:50]}  Bb7 {[%clk 0:02:35]} 10. Bd3 {[%clk 0:02:47]}  Qe7 {[%clk 0:02:32]} 11. Qe2 {[%clk 0:02:47]}  Rfe8 {[%clk 0:02:31]} 12. e4 {[%clk 0:02:40]}  dxc4 {[%clk 0:02:13]} 13. bxc4 {[%clk 0:02:38]}  e5 {[%clk 0:02:13]} 14. d5 {[%clk 0:02:27]}  Ba3 {[%clk 0:02:12]} 15. Rfd1 {[%clk 0:02:12]}  Bxb2 {[%clk 0:02:05]} 16. Qxb2 {[%clk 0:02:12]}  Nc5 {[%clk 0:02:06]} 17. Bc2 {[%clk 0:02:06]}  Rad8 {[%clk 0:02:06]} 18. Nd2 {[%clk 0:01:51]}  Nh5 {[%clk 0:02:05]} 19. Na4 {[%clk 0:01:45]}  Nf4 {[%clk 0:01:53]} 20. Nxc5 {[%clk 0:01:38]}  Qxc5 {[%clk 0:01:54]} 21. Re1 {[%clk 0:01:33]}  Rd6 {[%clk 0:01:50]} 22. Qb3 {[%clk 0:01:19]}  Rg6 {[%clk 0:01:48]} 23. g3 {[%clk 0:00:50]}  Nh3+ {[%clk 0:01:48]} 24. Kh1 {[%clk 0:00:51]}  Nxf2+ {[%clk 0:01:44]} 25. Kg2 {[%clk 0:00:49]}  Ng4 {[%clk 0:01:44]} 26. Qf3 {[%clk 0:00:44]}  Bc8 {[%clk 0:01:28]} 27. Nb3 {[%clk 0:00:30]}  Qxc4 {[%clk 0:01:10]} 28. Bd3 {[%clk 0:00:30]}  Qb4 {[%clk 0:01:07]} 29. Rf1 {[%clk 0:00:28]}  Rf6 {[%clk 0:00:59]} 30. Qe2 {[%clk 0:00:29]}  cxd5 {[%clk 0:00:56]} 31. exd5 {[%clk 0:00:28]}  e4 {[%clk 0:00:55]} 32. Bc2 {[%clk 0:00:24]}  Qc3 {[%clk 0:00:51]} 33. Rae1 {[%clk 0:00:15]}  Rxf1 {[%clk 0:00:50]} 34. Kxf1 {[%clk 0:00:06]}  Ba6 {[%clk 0:00:38]} 0-1


[Site "https://www.chess.com"]

[Event "Titled Tuesday Blitz May 23 Late 2023"]
[White "Papayan, Oleg"]
[Black "Aldokhin, Ivan"]
[WhiteFideId "4193911"]
[BlackFideId "24115720"]
[WhiteElo "2171"]
[BlackElo "2322"]
[Result "1/2-1/2"]
[Round "05"]
[TimeControl "180+2"]
[Date "2023.05.23"]
[WhiteClock "0:00:07"]
[BlackClock "0:00:02"]

1. e4 {[%clk 0:03:00]}  c5 {[%clk 0:02:59]} 2. d4 {[%clk 0:02:58]}  d5 {[%clk 0:02:54]} 3. dxc5 {[%clk 0:02:52]}  Nf6 {[%clk 0:02:35]} 4. exd5 {[%clk 0:02:45]}  Qxd5 {[%clk 0:02:18]} 5. Qxd5 {[%clk 0:02:34]}  Nxd5 {[%clk 0:02:19]} 6. Bc4 {[%clk 0:02:32]}  e6 {[%clk 0:02:16]} 7. Bxd5 {[%clk 0:02:12]}  exd5 {[%clk 0:02:17]} 8. Nc3 {[%clk 0:02:13]}  Be6 {[%clk 0:01:43]} 9. Be3 {[%clk 0:01:31]}  d4 {[%clk 0:01:43]} 10. Bxd4 {[%clk 0:01:31]}  Nc6 {[%clk 0:01:44]} 11. Be3 {[%clk 0:01:15]}  O-O-O {[%clk 0:01:44]} 12. a3 {[%clk 0:01:09]}  Ne5 {[%clk 0:01:42]} 13. Nf3 {[%clk 0:00:33]}  Nc4 {[%clk 0:01:36]} 14. b4 {[%clk 0:00:34]}  Nxe3 {[%clk 0:01:32]} 15. fxe3 {[%clk 0:00:34]}  Be7 {[%clk 0:01:33]} 16. Nd4 {[%clk 0:00:33]}  Bf6 {[%clk 0:01:28]} 17. Ne4 {[%clk 0:00:24]}  Bh4+ {[%clk 0:01:07]} 18. g3 {[%clk 0:00:20]}  Bd5 {[%clk 0:00:56]} 19. gxh4 {[%clk 0:00:20]}  Bxe4 {[%clk 0:00:56]} 20. O-O {[%clk 0:00:21]}  f6 {[%clk 0:00:46]} 21. Rf4 {[%clk 0:00:20]}  Rhe8 {[%clk 0:00:46]} 22. Kf2 {[%clk 0:00:19]}  Re5 {[%clk 0:00:44]} 23. Rg1 {[%clk 0:00:20]}  Bg6 {[%clk 0:00:39]} 24. Rg3 {[%clk 0:00:15]}  Rd7 {[%clk 0:00:37]} 25. Ke2 {[%clk 0:00:16]}  a6 {[%clk 0:00:30]} 26. Kd2 {[%clk 0:00:15]}  Kc7 {[%clk 0:00:28]} 27. c4 {[%clk 0:00:11]}  Rde7 {[%clk 0:00:23]} 28. h3 {[%clk 0:00:07]}  Rd7 {[%clk 0:00:23]} 29. Kc3 {[%clk 0:00:07]}  Rde7 {[%clk 0:00:23]} 30. Kd2 {[%clk 0:00:07]}  Kd7 {[%clk 0:00:21]} 31. a4 {[%clk 0:00:05]}  a5 {[%clk 0:00:18]} 32. c6+ {[%clk 0:00:02]}  bxc6 {[%clk 0:00:17]} 33. bxa5 {[%clk 0:00:03]}  Rxa5 {[%clk 0:00:15]} 34. Nb3 {[%clk 0:00:02]}  Rae5 {[%clk 0:00:12]} 35. a5 {[%clk 0:00:02]}  Kc7 {[%clk 0:00:10]} 36. Rd4 {[%clk 0:00:02]}  Re8 {[%clk 0:00:05]} 37. c5 {[%clk 0:00:01]}  Rb8 {[%clk 0:00:03]} 38. Kc3 {[%clk 0:00:01]}  Rbe8 {[%clk 0:00:03]} 39. Nd2 {[%clk 0:00:02]}  Rxe3+ {[%clk 0:00:03]} 40. Rxe3 {[%clk 0:00:03]}  Rxe3+ {[%clk 0:00:03]} 41. Kb4 {[%clk 0:00:04]}  Re5 {[%clk 0:00:04]} 42. Nc4 {[%clk 0:00:04]}  Re1 {[%clk 0:00:04]} 43. a6 {[%clk 0:00:04]}  Rb1+ {[%clk 0:00:04]} 44. Ka4 {[%clk 0:00:05]}  Ra1+ {[%clk 0:00:05]} 45. Na3 {[%clk 0:00:05]}  Bf5 {[%clk 0:00:04]} 46. Rb4 {[%clk 0:00:04]}  Bc8 {[%clk 0:00:04]} 47. a7 {[%clk 0:00:04]}  Bb7 {[%clk 0:00:04]} 48. Kb3 {[%clk 0:00:04]}  Rd1 {[%clk 0:00:04]} 49. Nc4 {[%clk 0:00:04]}  Rd8 {[%clk 0:00:04]} 50. Nd6 {[%clk 0:00:04]}  Ba8 {[%clk 0:00:03]} 51. Rb6 {[%clk 0:00:03]}  Rf8 {[%clk 0:00:03]} 52. Rb4 {[%clk 0:00:03]}  f5 {[%clk 0:00:03]} 53. Kc3 {[%clk 0:00:03]}  g6 {[%clk 0:00:02]} 54. Kd2 {[%clk 0:00:04]}  h6 {[%clk 0:00:02]} 55. Ke3 {[%clk 0:00:04]}  g5 {[%clk 0:00:03]} 56. hxg5 {[%clk 0:00:04]}  hxg5 {[%clk 0:00:04]} 57. Kf3 {[%clk 0:00:05]}  Rh8 {[%clk 0:00:03]} 58. Kg3 {[%clk 0:00:05]}  f4+ {[%clk 0:00:03]} 59. Kg4 {[%clk 0:00:05]}  f3 {[%clk 0:00:03]} 60. Kxf3 {[%clk 0:00:05]}  Rxh3+ {[%clk 0:00:04]} 61. Kg2 {[%clk 0:00:05]}  Ra3 {[%clk 0:00:03]} 62. Rg4 {[%clk 0:00:04]}  Rxa7 {[%clk 0:00:02]} 63. Rxg5 {[%clk 0:00:05]}  Ra5 {[%clk 0:00:02]} 64. Rg7+ {[%clk 0:00:05]}  Kd8 {[%clk 0:00:03]} 65. Rg8+ {[%clk 0:00:05]}  Kd7 {[%clk 0:00:03]} 66. Rg7+ {[%clk 0:00:05]}  Ke6 {[%clk 0:00:04]} 67. Ne4 {[%clk 0:00:05]}  Ke5 {[%clk 0:00:03]} 68. Nf2 {[%clk 0:00:03]}  Ra2 {[%clk 0:00:03]} 69. Kf3 {[%clk 0:00:03]}  Kd5 {[%clk 0:00:02]} 70. Rg5+ {[%clk 0:00:02]}  Kc4 {[%clk 0:00:02]} 71. Ne4 {[%clk 0:00:03]}  Ra3+ {[%clk 0:00:02]} 72. Kf4 {[%clk 0:00:03]}  Bb7 {[%clk 0:00:03]} 73. Nd6+ {[%clk 0:00:03]}  Kb4 {[%clk 0:00:02]} 74. Nxb7 {[%clk 0:00:04]}  Rc3 {[%clk 0:00:02]} 75. Re5 {[%clk 0:00:04]}  Kb5 {[%clk 0:00:03]} 76. Kf5 {[%clk 0:00:04]}  Ka6 {[%clk 0:00:03]} 77. Nd6 {[%clk 0:00:05]}  Rc1 {[%clk 0:00:03]} 78. Ne4 {[%clk 0:00:06]}  Kb5 {[%clk 0:00:03]} 79. Ke6 {[%clk 0:00:06]}  Rd1 {[%clk 0:00:03]} 80. Nf6 {[%clk 0:00:05]}  Rc1 {[%clk 0:00:02]} 81. Nd7 {[%clk 0:00:06]}  Rd1 {[%clk 0:00:03]} 82. Ke7 {[%clk 0:00:06]}  Rd2 {[%clk 0:00:03]} 83. Kd8 {[%clk 0:00:06]}  Rd5 {[%clk 0:00:02]} 84. Kc7 {[%clk 0:00:06]}  Rxe5 {[%clk 0:00:01]} 85. Nxe5 {[%clk 0:00:06]}  Kxc5 {[%clk 0:00:02]} 86. Nxc6 {[%clk 0:00:07]} 1/2-1/2


[Site "https://www.chess.com"]

[Event "Titled Tuesday Blitz May 23 Late 2023"]
[White "Yeritsyan, Hayk"]
[Black "Goroshkov, Maksym"]
[WhiteFideId "13307320"]
[BlackFideId "14142716"]
[WhiteElo "2452"]
[BlackElo "2322"]
[Result "1/2-1/2"]
[Round "05"]
[TimeControl "180+2"]
[Date "2023.05.23"]
[WhiteClock "0:00:54"]
[BlackClock "0:00:25"]

1. d4 {[%clk 0:02:58]}  Nf6 {[%clk 0:02:59]} 2. Nf3 {[%clk 0:02:51]}  d6 {[%clk 0:02:59]} 3. Bf4 {[%clk 0:02:50]}  g6 {[%clk 0:02:59]} 4. h3 {[%clk 0:02:51]}  Bg7 {[%clk 0:03:00]} 5. e3 {[%clk 0:02:51]}  O-O {[%clk 0:03:00]} 6. c3 {[%clk 0:02:52]}  c5 {[%clk 0:03:01]} 7. Be2 {[%clk 0:02:53]}  cxd4 {[%clk 0:03:01]} 8. exd4 {[%clk 0:02:54]}  Nc6 {[%clk 0:03:01]} 9. O-O {[%clk 0:02:54]}  Re8 {[%clk 0:03:01]} 10. Na3 {[%clk 0:02:53]}  Bf5 {[%clk 0:03:00]} 11. Bh2 {[%clk 0:02:53]}  e5 {[%clk 0:03:00]} 12. Nc4 {[%clk 0:02:53]}  e4 {[%clk 0:02:56]} 13. Nfd2 {[%clk 0:02:53]}  d5 {[%clk 0:02:52]} 14. Nd6 {[%clk 0:02:53]}  Re7 {[%clk 0:02:49]} 15. Qb3 {[%clk 0:02:42]}  Qd7 {[%clk 0:02:42]} 16. Nxf5 {[%clk 0:02:39]}  Qxf5 {[%clk 0:02:32]} 17. Rfe1 {[%clk 0:02:38]}  Bh6 {[%clk 0:02:29]} 18. Nf1 {[%clk 0:02:38]}  Qd7 {[%clk 0:02:09]} 19. Ne3 {[%clk 0:02:35]}  Rd8 {[%clk 0:02:01]} 20. Rad1 {[%clk 0:02:33]}  Ne8 {[%clk 0:01:57]} 21. Bg4 {[%clk 0:02:25]}  f5 {[%clk 0:01:55]} 22. Be2 {[%clk 0:02:24]}  Nf6 {[%clk 0:01:52]} 23. c4 {[%clk 0:02:21]}  Kh8 {[%clk 0:01:37]} 24. cxd5 {[%clk 0:02:13]}  Nxd5 {[%clk 0:01:36]} 25. Nxd5 {[%clk 0:02:13]}  Qxd5 {[%clk 0:01:37]} 26. Bc4 {[%clk 0:02:13]}  Qd7 {[%clk 0:01:21]} 27. Be5+ {[%clk 0:02:06]}  Bg7 {[%clk 0:01:13]} 28. Bb5 {[%clk 0:02:06]}  a6 {[%clk 0:00:55]} 29. Bxg7+ {[%clk 0:02:01]}  Kxg7 {[%clk 0:00:53]} 30. d5 {[%clk 0:02:02]}  axb5 {[%clk 0:00:43]} 31. dxc6 {[%clk 0:02:02]}  Qc7 {[%clk 0:00:44]} 32. Rxd8 {[%clk 0:01:43]}  Qxd8 {[%clk 0:00:43]} 33. Qxb5 {[%clk 0:01:43]}  bxc6 {[%clk 0:00:43]} 34. Qxc6 {[%clk 0:01:44]}  Qd2 {[%clk 0:00:42]} 35. Qc3+ {[%clk 0:01:31]}  Qxc3 {[%clk 0:00:40]} 36. bxc3 {[%clk 0:01:32]}  Ra7 {[%clk 0:00:41]} 37. Re2 {[%clk 0:01:32]}  Ra3 {[%clk 0:00:38]} 38. Rc2 {[%clk 0:01:32]}  Kf6 {[%clk 0:00:38]} 39. c4 {[%clk 0:01:28]}  Ke6 {[%clk 0:00:38]} 40. c5 {[%clk 0:01:28]}  Kd7 {[%clk 0:00:38]} 41. c6+ {[%clk 0:01:27]}  Kc7 {[%clk 0:00:39]} 42. Kf1 {[%clk 0:01:28]}  e3 {[%clk 0:00:31]} 43. fxe3 {[%clk 0:01:21]}  Rxe3 {[%clk 0:00:32]} 44. Kf2 {[%clk 0:01:22]}  Ra3 {[%clk 0:00:31]} 45. h4 {[%clk 0:01:20]}  h6 {[%clk 0:00:30]} 46. g3 {[%clk 0:01:15]}  g5 {[%clk 0:00:29]} 47. h5 {[%clk 0:01:15]}  f4 {[%clk 0:00:28]} 48. gxf4 {[%clk 0:01:14]}  gxf4 {[%clk 0:00:28]} 49. Kg2 {[%clk 0:01:04]}  Rg3+ {[%clk 0:00:28]} 50. Kh2 {[%clk 0:01:02]}  Rg5 {[%clk 0:00:27]} 51. Kh3 {[%clk 0:01:02]}  Rxh5+ {[%clk 0:00:25]} 52. Kg4 {[%clk 0:01:02]}  Rg5+ {[%clk 0:00:21]} 53. Kxf4 {[%clk 0:01:02]}  Rg6 {[%clk 0:00:21]} 54. Kf5 {[%clk 0:00:55]}  Rxc6 {[%clk 0:00:21]} 55. Rxc6+ {[%clk 0:00:54]}  Kxc6 {[%clk 0:00:21]} 56. Kg6 {[%clk 0:00:55]}  Kb5 {[%clk 0:00:22]} 57. Kxh6 {[%clk 0:00:55]}  Ka4 {[%clk 0:00:23]} 58. Kg5 {[%clk 0:00:54]}  Ka3 {[%clk 0:00:24]} 59. Kf4 {[%clk 0:00:54]}  Kxa2 {[%clk 0:00:25]} 1/2-1/2


[Site "https://www.chess.com"]

[Event "Titled Tuesday Blitz May 23 Late 2023"]
[White "Toniutti, Ezio"]
[Black "Gheorghiu, Calin"]
[WhiteFideId "113034"]
[BlackFideId "1200305"]
[WhiteElo "2215"]
[BlackElo "2223"]
[Result "1-0"]
[Round "05"]
[TimeControl "180+2"]
[Date "2023.05.23"]
[WhiteClock "0:00:03"]
[BlackClock "0:00:00"]

1. d4 {[%clk 0:03:00]}  d5 {[%clk 0:02:59]} 2. c4 {[%clk 0:03:01]}  e6 {[%clk 0:02:59]} 3. Nf3 {[%clk 0:03:01]}  c6 {[%clk 0:02:58]} 4. g3 {[%clk 0:02:59]}  Nf6 {[%clk 0:02:58]} 5. Bg2 {[%clk 0:03:00]}  Bb4+ {[%clk 0:02:50]} 6. Bd2 {[%clk 0:02:59]}  Be7 {[%clk 0:02:50]} 7. Qc2 {[%clk 0:02:58]}  O-O {[%clk 0:02:47]} 8. O-O {[%clk 0:02:58]}  Ne4 {[%clk 0:02:46]} 9. Nc3 {[%clk 0:02:53]}  f5 {[%clk 0:02:46]} 10. Rab1 {[%clk 0:02:50]}  Nd7 {[%clk 0:02:44]} 11. b4 {[%clk 0:02:49]}  a6 {[%clk 0:02:37]} 12. a4 {[%clk 0:02:35]}  a5 {[%clk 0:02:09]} 13. b5 {[%clk 0:02:31]}  Nxd2 {[%clk 0:02:07]} 14. Nxd2 {[%clk 0:02:29]}  Bb4 {[%clk 0:02:08]} 15. bxc6 {[%clk 0:02:18]}  bxc6 {[%clk 0:02:07]} 16. cxd5 {[%clk 0:02:18]}  cxd5 {[%clk 0:02:05]} 17. Nf3 {[%clk 0:02:09]}  Ba6 {[%clk 0:02:04]} 18. Nb5 {[%clk 0:02:04]}  Rc8 {[%clk 0:02:02]} 19. Qd3 {[%clk 0:01:55]}  Rc3 {[%clk 0:01:50]} 20. Qd1 {[%clk 0:01:54]}  Bxb5 {[%clk 0:01:45]} 21. axb5 {[%clk 0:01:54]}  Qb6 {[%clk 0:01:46]} 22. Ng5 {[%clk 0:01:23]}  Re8 {[%clk 0:01:31]} 23. e4 {[%clk 0:01:16]}  h6 {[%clk 0:01:11]} 24. Qh5 {[%clk 0:00:42]}  Nf6 {[%clk 0:01:05]} 25. Qf7+ {[%clk 0:00:37]}  Kh8 {[%clk 0:01:05]} 26. e5 {[%clk 0:00:31]}  Rc7 {[%clk 0:00:46]} 27. Qg6 {[%clk 0:00:28]}  hxg5 {[%clk 0:00:36]} 28. exf6 {[%clk 0:00:28]}  Rf8 {[%clk 0:00:32]} 29. Qh5+ {[%clk 0:00:18]}  Kg8 {[%clk 0:00:32]} 30. Qxg5 {[%clk 0:00:17]}  Rxf6 {[%clk 0:00:31]} 31. Rfc1 {[%clk 0:00:16]}  Bc3 {[%clk 0:00:27]} 32. h4 {[%clk 0:00:15]}  a4 {[%clk 0:00:25]} 33. Qe3 {[%clk 0:00:14]}  Bxd4 {[%clk 0:00:23]} 34. Qe2 {[%clk 0:00:13]}  Rff7 {[%clk 0:00:17]} 35. Rxc7 {[%clk 0:00:11]}  Rxc7 {[%clk 0:00:17]} 36. Bf1 {[%clk 0:00:09]}  a3 {[%clk 0:00:16]} 37. h5 {[%clk 0:00:08]}  Ra7 {[%clk 0:00:09]} 38. h6 {[%clk 0:00:09]}  a2 {[%clk 0:00:08]} 39. h7+ {[%clk 0:00:05]}  Kh8 {[%clk 0:00:09]} 40. Rc1 {[%clk 0:00:04]}  Qd8 {[%clk 0:00:05]} 41. b6 {[%clk 0:00:03]}  Ra3 {[%clk 0:00:04]} 42. b7 {[%clk 0:00:02]}  a1=Q {[%clk 0:00:03]} 43. Rc8 {[%clk 0:00:03]}  Rxg3+ {[%clk 0:00:03]} 44. Kh2 {[%clk 0:00:02]}  Rh3+ {[%clk 0:00:02]} 45. Bxh3 {[%clk 0:00:01]}  Be5+ {[%clk 0:00:02]} 46. f4 {[%clk 0:00:01]}  Bxf4+ {[%clk 0:00:01]} 47. Kg2 {[%clk 0:00:02]}  Qa5 {[%clk 0:00:00]} 48. Rxd8+ {[%clk 0:00:03]} 1-0


[Site "https://www.chess.com"]

[Event "Titled Tuesday Blitz May 23 Late 2023"]
[White "Wizard_of_Odds"]
[Black "Korchmar, Vasiliy"]
[BlackFideId "24131750"]
[WhiteElo "2442"]
[BlackElo "2370"]
[Result "0-1"]
[Round "05"]
[TimeControl "180+2"]
[Date "2023.05.23"]
[WhiteClock "0:00:00"]
[BlackClock "0:00:11"]

1. Nf3 {[%clk 0:02:59]}  d5 {[%clk 0:02:57]} 2. e3 {[%clk 0:02:57]}  Nf6 {[%clk 0:02:56]} 3. c4 {[%clk 0:02:57]}  c6 {[%clk 0:02:56]} 4. b3 {[%clk 0:02:56]}  e6 {[%clk 0:02:56]} 5. Bb2 {[%clk 0:02:56]}  Bd6 {[%clk 0:02:57]} 6. d4 {[%clk 0:02:55]}  O-O {[%clk 0:02:57]} 7. Nbd2 {[%clk 0:02:54]}  Nbd7 {[%clk 0:02:55]} 8. Bd3 {[%clk 0:02:52]}  Qe7 {[%clk 0:02:49]} 9. Ne5 {[%clk 0:02:50]}  a5 {[%clk 0:02:20]} 10. O-O {[%clk 0:02:46]}  a4 {[%clk 0:02:19]} 11. Qc2 {[%clk 0:02:35]}  a3 {[%clk 0:02:17]} 12. Bc3 {[%clk 0:02:35]}  g6 {[%clk 0:02:14]} 13. Rac1 {[%clk 0:02:33]}  Ne8 {[%clk 0:02:12]} 14. f4 {[%clk 0:02:32]}  f6 {[%clk 0:02:10]} 15. Nxd7 {[%clk 0:02:31]}  Bxd7 {[%clk 0:02:10]} 16. Nf3 {[%clk 0:02:31]}  Ng7 {[%clk 0:02:08]} 17. Qd2 {[%clk 0:02:25]}  b5 {[%clk 0:02:06]} 18. c5 {[%clk 0:02:21]}  Bc7 {[%clk 0:02:05]} 19. e4 {[%clk 0:02:16]}  dxe4 {[%clk 0:02:03]} 20. Bxe4 {[%clk 0:02:17]}  Nf5 {[%clk 0:02:00]} 21. g4 {[%clk 0:02:10]}  Nh6 {[%clk 0:01:53]} 22. g5 {[%clk 0:01:46]}  fxg5 {[%clk 0:01:38]} 23. fxg5 {[%clk 0:01:47]}  Bf4 {[%clk 0:01:35]} 24. Qg2 {[%clk 0:01:41]}  Bxc1 {[%clk 0:01:32]} 25. Rxc1 {[%clk 0:01:42]}  Nf5 {[%clk 0:01:32]} 26. Re1 {[%clk 0:01:27]}  Qg7 {[%clk 0:01:13]} 27. Ne5 {[%clk 0:01:22]}  Rac8 {[%clk 0:01:09]} 28. Ba1 {[%clk 0:01:11]}  Be8 {[%clk 0:01:08]} 29. Ng4 {[%clk 0:01:04]}  Nxd4 {[%clk 0:00:57]} 30. Nf6+ {[%clk 0:01:04]}  Rxf6 {[%clk 0:00:57]} 31. Bxd4 {[%clk 0:01:04]}  Rf1+ {[%clk 0:00:56]} 32. Kxf1 {[%clk 0:00:55]}  Qxd4 {[%clk 0:00:56]} 33. Qf2 {[%clk 0:00:55]}  Rd8 {[%clk 0:00:44]} 34. Re2 {[%clk 0:00:23]}  Qe5 {[%clk 0:00:25]} 35. Qg3 {[%clk 0:00:08]}  Qxc5 {[%clk 0:00:22]} 36. Bf3 {[%clk 0:00:05]}  Bf7 {[%clk 0:00:19]} 37. Kg2 {[%clk 0:00:04]}  Qc3 {[%clk 0:00:15]} 38. Rf2 {[%clk 0:00:03]}  e5 {[%clk 0:00:12]} 39. Qg4 {[%clk 0:00:00]}  Qd4 {[%clk 0:00:11]} 0-1


[Site "https://www.chess.com"]